Workbook

Sheet INFORME 3
A1: AMERICA MOVIL PERU S.A.C
A3: INFORME 3: IMPUTACIÓN DEL CAPITAL INVERTIDO A LAS LÍNEAS DE NEGOCIO
A5: Periodo de reporte: Enero a Diciembre 2016
A6: Expresado en Miles de Nuevos Soles | B6: Código Plan Contable | C6: Código PCR | D6: 1. Acceso Instalación Telefonía Fija de Abonado Urbano | E6: 2. Prestación del servicio de voz Telefonía Fija local desde Abonado Urbano | F6: 3. Prestación del servicio de voz Telefonía Fija LD desde Abonado Urbano | G6: 4. Prestación del servicio de voz Telefonía Fija Local desde TUP Urbano | H6: 5. Prestación del servicio de voz Telefonía Fija LD desde TUP Urbano | I6: 6. Acceso Instalación Telefonía Fija de Abonado Rural | J6: 7. Prestación del servicio de voz Telefonía Fija Local desde Abonado Rural | K6: 8. Prestación del servicio de voz Telefonía Fija LD desde Abonado Rural | L6: 9. Prestación del servicio de voz Telefonía Fija Local desde TUP Rural | M6: 10. Prestación del servicio de voz Telefonía Fija LD desde TUP Rural | N6: 11. Instalación Televisión de Paga | O6: 12. Prestación de servicios Televisión de Paga | P6: 13. Instalación Internet Fijo | Q6: 14. Prestación de servicios Internet Fijo | R6: 15. Prestación de servicio voz móvil por Telefonía Móvil | S6: 16. Mensajes de Texto Telefonía Móvil | T6: 17. Roaming Internacional por Telefonía Móvil | U6: 18. Prestación de Internet Móvil | V6: 19. Servicios Suplementarios | W6: 20. Servicios de valor añadido (No incluye Internet) | X6: 21. Suministro de Equipos | Y6: 22. Instalación para Alquiler de circuitos y Transmisión de Datos para clientes privados y otros operadores | Z6: 23. Alquiler de Circuitos y Transmisión de Datos a clientes privados y otros operadores | AA6: 24. Provisión de acceso a EEDE | AB6: 25. Interconexión | AC6: 26. Otros | AD6: Total | AE6: Número de nota 1/.
A8: CAPITAL DE TRABAJO | D8: =+D9-D10 -> -124.0313418 | E8: -53040.08975 | F8: -1710.138469 | G8: -8179.603037 | H8: -739.6107937 | I8: 0 | J8: -0.01716522878 | K8: -0.002025129079 | L8: -30.43319246 | M8: -1.341482201 | N8: -518.1493972 | O8: -89108.35809 | P8: -72.73861923 | Q8: -119727.4269 | R8: -86744.44772 | S8: -38727.72058 | T8: -1882.46649 | U8: -356791.5967 | V8: 23402.26846 | W8: -72541.24962 | X8: -446073.2192 | Y8: 181.2276178 | Z8: 16866.28611 | AA8: -324.4522533 | AB8: -61644.92563 | AC8: =+AC9-AC10 -> 30489.83868 | AD8: =SUM(D8:AC8) -> -1267042.398
A9: ACTIVO CORRIENTE | D9: 55.33770531 | E9: 23664.31591 | F9: 762.9937502 | G9: 1125.616334 | H9: 101.7797546 | I9: 0 | J9: 0.00765842212 | K9: 0.0009035296606 | L9: 4.187990341 | M9: 0.184604836 | N9: 189.2428051 | O9: 32544.89098 | P9: 35.84586188 | Q9: 59002.12094 | R9: 476974.5413 | S9: 37929.84237 | T9: 11294.90774 | U9: 330070.7461 | V9: 27878.95936 | W9: 71046.73661 | X9: 304664.9388 | Y9: 294.3608323 | Z9: 27395.23963 | AA9: 317.7678066 | AB9: 136732.735 | AC9: 47532.68164 | AD9: 1589619.982
A10: PASIVO CORRIENTE | D10: 179.3690471 | E10: 76704.40566 | F10: 2473.132219 | G10: 9305.219371 | H10: 841.3905484 | I10: 0 | J10: 0.0248236509 | K10: 0.00292865874 | L10: 34.6211828 | M10: 1.526087037 | N10: 707.3922024 | O10: 121653.2491 | P10: 108.5844811 | Q10: 178729.5479 | R10: 563718.989 | S10: 76657.56295 | T10: 13177.37423 | U10: 686862.3427 | V10: 4476.690897 | W10: 143587.9862 | X10: 750738.158 | Y10: 113.1332145 | Z10: 10528.95352 | AA10: 642.2200598 | AB10: 198377.6606 | AC10: 17042.84296 | AD10: 2856662.38
A12: ACTIVO FIJO NETO | C12: 30 | D12: =+D13+D45+D53+D60 -> 382.893476 | E12: =+E13+E45+E53+E60 -> 163738.4877 | F12: 5279.317738 | G12: 9577.151563 | H12: 865.9790257 | I12: 0 | J12: 0.05299026857 | K12: 0.006251715906 | L12: 35.63293908 | M12: 1.570684824 | N12: 856.1007176 | O12: 147227.2856 | P12: 357.0481214 | Q12: 587699.5372 | R12: 260158.9807 | S12: 249918.2955 | T12: 1012.934624 | U12: 2230491.2 | V12: 18811.88565 | W12: 468124.2579 | X12: 990.8271089 | Y12: 554.2531196 | Z12: 51582.59986 | AA12: 2093.760048 | AB12: 0 | AC12: 1066.292589 | AD12: =SUM(D12:AC12) -> 4200826.351 | AE12: 2
A13: Planta y Equipo de Comunicaciones | B13: NOTA 2 | C13: 301 | D13: =+D14+D22+D23+D32+D39 -> 163.202545 | E13: 69791.05044 | F13: 2250.229227 | G13: 5287.450641 | H13: 478.0984538 | I13: 0 | J13: 0.02258629941 | K13: 0.002664699219 | L13: 19.67259318 | M13: 0.8671595542 | N13: 542.8340505 | O13: 93353.48302 | P13: 268.0236653 | Q13: 441165.6991 | R13: 44022.4112 | S13: 46209.48958 | T13: 739.0637828 | U13: 412854.8345 | V13: 17827.70583 | W13: 86555.41994 | X13: 990.8271089 | Y13: 433.6318935 | Z13: 40356.76059 | AA13: 387.1328545 | AB13: 0 | AC13: 1066.292589 | AD13: =SUM(D13:AC13) -> 1264764.206 | AE13: 2
A14: Equipos terminales | B14: NOTA 2 | C14: 3011 | D14: =+D15+D16+D17+D18+D19+D20+D21 -> 58.00628281 | E14: 24805.49191 | F14: 799.7879747 | G14: 3585.432538 | H14: 324.19967 | I14: 0 | J14: 0.008027737993 | K14: 0.0009471010178 | L14: 13.34003105 | M14: 0.5880229042 | N14: 62.96054112 | O14: 10827.59234 | P14: 46.17896447 | Q14: 76010.35946 | R14: 1399.949005 | S14: 90.60258414 | T14: 168.3363791 | U14: 838.1797044 | V14: 5901.793854 | W14: 169.7085337 | X14: 872.8860194 | Y14: 174.1794038 | Z14: 16210.33094 | AA14: 0.7590483544 | AB14: 0 | AC14: 428.4785127 | AD14: 142789.1507 | AE14: 2
A15: Equipos terminales -Teléfonos de Abonados | B15: NOTA 2 | C15: 30111 | D15: 0.4580392479 | E15: 195.8734176 | F15: 6.315424203 | G15: 6.381753597 | H15: 0.5770468105 | I15: 0 | J15: 6.339001388e-05 | K15: 7.478662946e-06 | L15: 0.02374407836 | M15: 0.001046628892 | N15: 2.681206338 | O15: 461.0984703 | P15: 0.3607032025 | Q15: 593.7157837 | R15: 0 | S15: 0 | T15: 0.1092003541 | U15: 0 | V15: 6.226681489 | W15: 0 | X15: 0.9074167732 | Y15: 0.1321091313 | Z15: 12.29498259 | AA15: 0 | AB15: 0 | AC15: 3.473525423 | AD15: 1290.630622 | AE15: 2
A16: Equipos terminales -Teléfonos Públicos | B16: NOTA 2 | C16: 30112 | D16: 11.32182326 | E16: 4841.603039 | F16: 156.1047813 | G16: 2756.778691 | H16: 249.271666 | I16: 0 | J16: 0.001566875626 | K16: 0.0001848577397 | L16: 10.25692519 | M16: 0.4521209073 | N16: 2.430517173 | O16: 417.9863872 | P16: 7.380275764 | Q16: 12147.89938 | R16: 194.0892398 | S16: 12.56116231 | T16: 11.48206113 | U16: 116.2054196 | V16: 154.6914017 | W16: 23.52842865 | X16: 22.52293266 | Y16: 52.36722858 | Z16: 4873.653755 | AA16: 0.1052346318 | AB16: 0 | AC16: 13.27240042 | AD16: 26075.96662 | AE16: 2
A17: Equipos Terminales -Televisión de Paga | B17: NOTA 2 | C17: 30113 | D17: 2.566935269 | E17: 1097.710265 | F17: 35.39278611 | G17: 75.25008483 | H17: 6.804214669 | I17: 0 | J17: 0.0003552491694 | K17: 4.191178763e-05 | L17: 0.2799769504 | M17: 0.01234126509 | N17: 33.40605575 | O17: 5744.981648 | P17: 2.0709854 | Q17: 3408.832279 | R17: 0 | S17: 0 | T17: 0.267670208 | U17: 0 | V17: 15.06924454 | W17: 0 | X17: 2.225155096 | Y17: 0.3200385108 | Z17: 29.78498065 | AA17: 0 | AB17: 0 | AC17: 20.03072406 | AD17: 10475.00578 | AE17: 2
A18: Equipos Terminales -Internet Fijo | B18: NOTA 2 | C18: 30114 | D18: 43.65948503 | E18: 18670.30519 | F18: 601.9749831 | G18: 747.0220087 | H18: 67.54674258 | I18: 0 | J18: 0.006042223183 | K18: 0.0007128528275 | L18: 2.779384825 | M18: 0.1225141029 | N18: 24.44276186 | O18: 4203.525833 | P18: 36.36700011 | Q18: 59859.91202 | R18: 94.6394699 | S18: 6.124923482 | T18: 106.2612864 | U18: 56.66269458 | V18: 5725.806526 | W18: 11.47265051 | X18: 847.2305149 | Y18: 121.3600276 | Z18: 11294.59722 | AA18: 0.05131325043 | AB18: 0 | AC18: 391.7018628 | AD18: 102913.5732 | AE18: 2
A19: Equipos Terminales -Telefonía Móvil | B19: NOTA 2 | C19: 30115 | D19: 0 | E19: 0 | F19: 0 | G19: 0 | H19: 0 | I19: 0 | J19: 0 | K19: 0 | L19: 0 | M19: 0 | N19: 0 | O19: 0 | P19: 0 | Q19: 0 | R19: 1111.220295 | S19: 71.91649835 | T19: 50.21616109 | U19: 665.3115901 | V19: 0 | W19: 134.7074545 | X19: 0 | Y19: 0 | Z19: 0 | AA19: 0.6025004722 | AB19: 0 | AC19: 0 | AD19: 2033.9745 | AE19: 2
A20: Equipos Terminales -Internet Móvil | B20: NOTA 2 | C20: 30116 | D20: 0 | E20: 0 | F20: 0 | G20: 0 | H20: 0 | I20: 0 | J20: 0 | K20: 0 | L20: 0 | M20: 0 | N20: 0 | O20: 0 | P20: 0 | Q20: 0 | R20: 0 | S20: 0 | T20: 0 | U20: 0 | V20: 0 | W20: 0 | X20: 0 | Y20: 0 | Z20: 0 | AA20: 0 | AB20: 0 | AC20: 0 | AD20: 0 | AE20: 2
A21: Otros Equipos Terminales | B21: NOTA 2 | C21: 30117 | D21: 0 | E21: 0 | F21: 0 | G21: 0 | H21: 0 | I21: 0 | J21: 0 | K21: 0 | L21: 0 | M21: 0 | N21: 0 | O21: 0 | P21: 0 | Q21: 0 | R21: 0 | S21: 0 | T21: 0 | U21: 0 | V21: 0 | W21: 0 | X21: 0 | Y21: 0 | Z21: 0 | AA21: 0 | AB21: 0 | AC21: 0 | AD21: 0 | AE21: 2
A22: Planta y Equipo de Acceso Local | B22: NOTA 2 | C22: 3012 | D22: 15.27946114 | E22: 6534.025822 | F22: 210.6725115 | G22: 242.6819386 | H22: 21.94362983 | I22: 0 | J22: 0.002114590089 | K22: 0.0002494763067 | L22: 0.9029272092 | M22: 0.03980064799 | N22: 70.04138216 | O22: 12045.31472 | P22: 12.39479988 | Q22: 20401.78261 | R22: 52.32239866 | S22: 3.386226576 | T22: 13.48886505 | U22: 31.32655009 | V22: 624.2584724 | W22: 6.342772146 | X22: 92.42174827 | Y22: 13.35811466 | Z22: 1243.197845 | AA22: 0.0283690552 | AB22: 0 | AC22: 123.1545883 | AD22: 41758.36792 | AE22: 2
A23: Equipos Centrales y de agregación | B23: NOTA 2 | C23: 3013 | D23: =+D24+D25+D26+D27+D28+D29+D30+D31 -> 12.72011258 | E23: 5439.559896 | F23: 175.3843306 | G23: 226.9411136 | H23: 20.5203231 | I23: 0 | J23: 0.001760390876 | K23: 0.0002076883915 | L23: 0.8443615852 | M23: 0.03721910015 | N23: 50.74382288 | O23: 8726.631285 | P23: 16.91374194 | Q23: 27839.94009 | R23: 6804.446324 | S23: 3480.380604 | T23: 218.9285389 | U23: 31175.94281 | V23: 468.923063 | W23: 6519.132921 | X23: 14.3095481 | Y23: 10.38050185 | Z23: 966.080757 | AA23: 29.15785676 | AB23: 0 | AC23: 72.22445098 | AD23: 92270.14564 | AE23: 2
A24: Centrales Locales | B24: NOTA 2 | C24: 30131 | D24: 0 | E24: 0 | F24: 0 | G24: 0 | H24: 0 | I24: 0 | J24: 0 | K24: 0 | L24: 0 | M24: 0 | N24: 0 | O24: 0 | P24: 0 | Q24: 0 | R24: 0 | S24: 0 | T24: 0 | U24: 0 | V24: 0 | W24: 0 | X24: 0 | Y24: 0 | Z24: 0 | AA24: 0 | AB24: 0 | AC24: 0 | AD24: 0 | AE24: 2
A25: Centrales de Larga Distancia Nacional | B25: NOTA 2 | C25: 30132 | D25: 0.3000161596 | E25: 128.2972819 | F25: 4.136609088 | G25: 0.8830976023 | H25: 0.0798508822 | I25: 0 | J25: 4.152052167e-05 | K25: 4.898531613e-06 | L25: 0.003285670364 | M25: 0.0001448309545 | N25: 1.33932661 | O25: 230.3296998 | P25: 3.030526431 | Q25: 4988.232326 | R25: 138.4444504 | S25: 209.1112706 | T25: 0.3471229323 | U25: 1867.259446 | V25: 203.7956174 | W25: 391.6882444 | X25: 0 | Y25: 4.317305639 | Z25: 401.798098 | AA25: 1.751887845 | AB25: 0 | AC25: 0 | AD25: 8575.145655 | AE25: 2
A26: Centrales de Larga Distancia Internacional | B26: NOTA 2 | C26: 30133 | D26: 0.005256663343 | E26: 2.247930977 | F26: 0.07247863378 | G26: 0.01547298919 | H26: 0.001399088656 | I26: 0 | J26: 7.274921611e-07 | K26: 8.582848205e-08 | L26: 5.756910889e-05 | M26: 2.537621875e-06 | N26: 0.0234666996 | O26: 4.035668251 | P26: 0.05309866383 | Q26: 87.40015223 | R26: 2.425722229 | S26: 3.66389448 | T26: 0.006082033703 | U26: 32.71675198 | V26: 3.570757499 | W26: 6.86287445 | X26: 0 | Y26: 0.07564466636 | Z26: 7.040011898 | AA26: 0.03069529531 | AB26: 0 | AC26: 0 | AD26: 150.2474197 | AE26: 2
A27: Controladores | B27: NOTA 2 | C27: 30134 | D27: 8.819045948 | E27: 3771.328937 | F27: 121.5966022 | G27: 179.8867323 | H27: 16.26560217 | I27: 0 | J27: 0.001220505552 | K27: 0.000143993495 | L27: 0.6692901258 | M27: 0.02950202455 | N27: 31.19003632 | O27: 5363.883351 | P27: 5.73764317 | Q27: 9444.133812 | R27: 3806.92622 | S27: 422.2269752 | T27: 167.342206 | U27: 3846.995946 | V27: 48.03629562 | W27: 790.8772307 | X27: 4.427008147 | Y27: 1.464231537 | Z27: 136.2714377 | AA27: 3.537323949 | AB27: 0 | AC27: 47.79951278 | AD27: 28219.44631 | AE27: 2
A28: Gateways | B28: NOTA 2 | C28: 30135 | D28: 0.3755322927 | E28: 160.5905912 | F28: 5.177822079 | G28: 8.436331432 | H28: 0.7628245232 | I28: 0 | J28: 5.197152288e-05 | K28: 6.13152575e-06 | L28: 0.03138838119 | M28: 0.001383586515 | N28: 0.2411107902 | O28: 41.46484922 | P28: 0.372854302 | Q28: 613.7164365 | R28: 1016.385022 | S28: 65.77890276 | T28: 47.08540972 | U28: 608.5316638 | V28: 64.64312429 | W28: 123.2110678 | X28: 9.593959359 | Y28: 1.369431436 | Z28: 127.4486896 | AA28: 0.5510810577 | AB28: 0 | AC28: 4.293760437 | AD28: 2900.063295 | AE28: 2
A29: Cabeceras | B29: NOTA 2 | C29: 30136 | D29: 2.883666081 | E29: 1233.15531 | F29: 39.75985605 | G29: 37.11690779 | H29: 3.356161113 | I29: 0 | J29: 0.0003990829034 | K29: 4.708322871e-05 | L29: 0.1380978995 | M29: 0.006087296772 | N29: 13.06204613 | O29: 2246.33569 | P29: 2.161800318 | Q29: 3558.313208 | R29: 0 | S29: 0 | T29: 0.03454754093 | U29: 0 | V29: 3.097275797 | W29: 0 | X29: 0.2885805912 | Y29: 0.06561419933 | Z29: 6.106507784 | AA29: 0 | AB29: 0 | AC29: 20.13117776 | AD29: 7166.01298 | AE29: 2
A30: Transmisión de Datos (Servicio Final) | B30: NOTA 2 | C30: 30137 | D30: 0.3365954358 | E30: 143.9398451 | F30: 4.640962477 | G30: 0.6025714433 | H30: 0.05448532667 | I30: 0 | J30: 4.658288443e-05 | K30: 5.495781913e-06 | L30: 0.002241939202 | M30: 9.882372805e-05 | N30: 4.887836338 | O30: 840.5820272 | P30: 5.557819053 | Q30: 9148.144157 | R30: 1840.264909 | S30: 2779.599561 | T30: 4.113170677 | U30: 24820.439 | V30: 145.7799923 | W30: 5206.493503 | X30: 0 | Y30: 3.088274374 | Z30: 287.4160121 | AA30: 23.28686861 | AB30: 0 | AC30: 0 | AD30: 45259.22998 | AE30: 2
A31: Otros equipos centrales | B31: NOTA 2 | C31: 30138 | D31: 0 | E31: 0 | F31: 0 | G31: 0 | H31: 0 | I31: 0 | J31: 0 | K31: 0 | L31: 0 | M31: 0 | N31: 0 | O31: 0 | P31: 0 | Q31: 0 | R31: 0 | S31: 0 | T31: 0 | U31: 0 | V31: 0 | W31: 0 | X31: 0 | Y31: 0 | Z31: 0 | AA31: 0 | AB31: 0 | AC31: 0 | AD31: 0 | AE31: 2
A32: Transmisión (Gran capacidad) | B32: NOTA 2 | C32: 3014 | D32: =+D33+D34+D35+D36+D37+D38 -> 37.06359499 | E32: 15849.67457 | F32: 511.0311528 | G32: 473.6756971 | H32: 42.83039858 | I32: 0 | J32: 0.005129389701 | K32: 0.0006051580422 | L32: 1.762367145 | M32: 0.07768439541 | N32: 199.9407161 | O32: 34384.65629 | P32: 155.8942314 | Q32: 256601.1755 | R32: 16809.18288 | S32: 25149.07278 | T32: 38.86489298 | U32: 224565.995 | V32: 10285.05485 | W32: 47106.95953 | X32: 5.719994634 | Y32: 218.1801491 | Z32: 20305.34232 | AA32: 210.6933537 | AB32: 0 | AC32: 219.1851119 | AD32: 653172.0388 | AE32: 2
A33: Cables de Transmisión (excluidos internacional) | B33: NOTA 2 | C33: 30141 | D33: 35.15447365 | E33: 15033.26828 | F33: 484.7082751 | G33: 462.4953152 | H33: 41.8194533 | I33: 0 | J33: 0.00486517822 | K33: 0.0005739867505 | L33: 1.720769196 | M33: 0.07585077547 | N33: 158.7302768 | O33: 27297.52157 | P33: 81.69204514 | Q33: 134464.7241 | R33: 5548.158405 | S33: 8380.129725 | T33: 14.9088469 | U33: 74830.38261 | V33: 9781.170632 | W33: 15696.89807 | X33: 5.719994634 | Y33: 207.2306699 | Z33: 19286.30863 | AA33: 70.20686814 | AB33: 0 | AC33: 219.1851119 | AD33: 312102.2154 | AE33: 2
A34: Equipos de Transmisión (excluidos internacional) | B34: NOTA 2 | C34: 30142 | D34: 1.436324025 | E34: 614.2218091 | F34: 19.80396997 | G34: 9.247964432 | H34: 0.8362134792 | I34: 0 | J34: 0.0001987790354 | K34: 2.345166557e-05 | L34: 0.03440815894 | M34: 0.001516697036 | N34: 32.10820866 | O34: 5521.785358 | P34: 55.96455184 | Q34: 92117.39047 | R34: 2315.203656 | S34: 3256.866879 | T34: 4.011830495 | U34: 29079.50524 | V34: 75.1042781 | W34: 6100.467307 | X34: 0 | Y34: 1.863719247 | Z34: 173.4505062 | AA34: 27.28530835 | AB34: 0 | AC34: 0 | AD34: 139406.5897 | AE34: 2
A35: Equipos de Transmisión Radio | B35: NOTA 2 | C35: 30143 | D35: 0.005094002019 | E35: 2.178371372 | F35: 0.07023586689 | G35: 0.006195761082 | H35: 0.0005602291152 | I35: 0 | J35: 7.049807636e-07 | K35: 8.317261965e-08 | L35: 2.305207093e-05 | M35: 1.016125499e-06 | N35: 0.002113676724 | O35: 0.3634979861 | P35: 0.1128649366 | Q35: 185.7751576 | R35: 7970.237613 | S35: 12038.52166 | T35: 17.69713587 | U35: 107497.9996 | V35: 1.497647172 | W35: 22549.46565 | X35: 0 | Y35: 0.03172688728 | Z35: 2.952721912 | AA35: 100.8560643 | AB35: 0 | AC35: 0 | AD35: 150367.7739 | AE35: 2
A36: Equipos de Transmisión por Satélite | B36: NOTA 2 | C36: 30144 | D36: 0.01477222041 | E36: 6.317112148 | F36: 0.2036786995 | G36: 0.0139001787 | H36: 0.001256872999 | I36: 0 | J36: 2.044390871e-06 | K36: 2.411943036e-07 | L36: 5.171727915e-05 | M36: 2.279675705e-06 | N36: 0.3031985493 | O36: 52.14234552 | P36: 0.4941930147 | Q36: 813.43939 | R36: 664.182967 | S36: 1003.204851 | T36: 1.475355611 | U36: 8958.119418 | V36: 16.39513166 | W36: 1879.112233 | X36: 0 | Y36: 0.347322456 | Z36: 32.32421188 | AA36: 8.40462773 | AB36: 0 | AC36: 0 | AD36: 13436.49602 | AE36: 2
A37: Cables y Equipos internacionales (excluyendo satélite) | B37: NOTA 2 | C37: 30145 | D37: 0.003254002621 | E37: 1.391524017 | F37: 0.04486603933 | G37: 0.005208959782 | H37: 0.000471001204 | I37: 0 | J37: 4.503353638e-07 | K37: 5.31299205e-08 | L37: 1.938055855e-05 | M37: 8.542867914e-07 | N37: 0.0472636417 | O37: 8.128129709 | P37: 0.0500475075 | Q37: 82.37796319 | R37: 89.74617684 | S37: 135.5557195 | T37: 0.1995038215 | U37: 1210.445027 | V37: 1.264839271 | W37: 253.9106649 | X37: 0 | Y37: 0.02679497129 | Z37: 2.493723956 | AA37: 1.135655752 | AB37: 0 | AC37: 0 | AD37: 1786.826855 | AE37: 2
A38: Otros equipos de transmisión | B38: NOTA 2 | C38: 30146 | D38: 0.4496770889 | E38: 192.2974693 | F38: 6.200127138 | G38: 1.907112502 | H38: 0.1724436975 | I38: 0 | J38: 6.223273888e-05 | K38: 7.3421293e-06 | L38: 0.007095640406 | M38: 0.0003127728162 | N38: 8.749654817 | O38: 1504.715394 | P38: 17.58052898 | Q38: 28937.46844 | R38: 221.6540657 | S38: 334.7939422 | T38: 0.5722202835 | U38: 2989.543076 | V38: 409.6223222 | W38: 627.1056125 | X38: 0 | Y38: 8.679915563 | Z38: 807.8125237 | AA38: 2.804829391 | AB38: 0 | AC38: 0 | AD38: 36072.13684 | AE38: 2
A39: Otros Activos Fijos Brutos de Comunicaciones | B39: NOTA 2 | C39: 3015 | D39: =+D40+D41+D42+D43+D44 -> 40.13309348 | E39: 17162.29824 | F39: 553.3532576 | G39: 758.7193531 | H39: 68.60443232 | I39: 0 | J39: 0.005554190748 | K39: 0.0006552754606 | L39: 2.822906196 | M39: 0.1244325065 | N39: 159.1475882 | O39: 27369.28839 | P39: 36.6419276 | Q39: 60312.44138 | R39: 18956.51059 | S39: 17486.04738 | T39: 299.4451068 | U39: 156243.3905 | V39: 547.6755934 | W39: 32753.27619 | X39: 5.489798513 | Y39: 17.53372415 | Z39: 1631.808725 | AA39: 146.4942266 | AB39: 0 | AC39: 223.2499248 | AD39: 334774.503 | AE39: 2
A40: Equipos de Fuerza (Planta Energía Eléctrica) | B40: NOTA 2 | C40: 30151 | D40: 7.89326245 | E40: 3375.431908 | F40: 108.8319417 | G40: 208.8647809 | H40: 18.88583659 | I40: 0 | J40: 0.001092382407 | K40: 0.0001288777101 | L40: 0.7771064249 | M40: 0.03425452124 | N40: 11.5205984 | O40: 1981.24636 | P40: 8.516326024 | Q40: 14017.83279 | R40: 1750.17911 | S40: 2159.804472 | T40: 0.06956126006 | U40: 19280.5515 | V40: 359.1315718 | W40: 4045.549622 | X40: 0 | Y40: 12.77652584 | Z40: 1189.071196 | AA40: 18.09436283 | AB40: 0 | AC40: 0 | AD40: 48555.06431 | AE40: 2
A41: Sistemas de Gestión de Red | B41: NOTA 2 | C41: 30152 | D41: 0.05221352061 | E41: 22.32830653 | F41: 0.7199176345 | G41: 0.05628196725 | H41: 0.005089091767 | I41: 0 | J41: 7.226052815e-06 | K41: 8.525193501e-07 | L41: 0.0002094037979 | M41: 9.230430495e-06 | N41: 1.112184017 | O41: 191.2670211 | P41: 1.547778243 | Q41: 2547.635746 | R41: 2471.840224 | S41: 3733.55269 | T41: 5.490925679 | U41: 33338.76509 | V41: 13.7715748 | W41: 6993.351884 | X41: 0 | Y41: 0.2917437494 | Z41: 27.15167593 | AA41: 31.27887634 | AB41: 0 | AC41: 0 | AD41: 49380.21945 | AE41: 2
A42: Equipos para Interconexión | B42: NOTA 2 | C42: 30153 | D42: 0 | E42: 0 | F42: 0 | G42: 0 | H42: 0 | I42: 0 | J42: 0 | K42: 0 | L42: 0 | M42: 0 | N42: 0 | O42: 0 | P42: 0 | Q42: 0 | R42: 0 | S42: 0 | T42: 0 | U42: 0 | V42: 0 | W42: 0 | X42: 0 | Y42: 0 | Z42: 0 | AA42: 0 | AB42: 0 | AC42: 0 | AD42: 0 | AE42: 2
A43: Equipos para Circuitos Alquilados | B43: NOTA 2 | C43: 30154 | D43: 0 | E43: 0 | F43: 0 | G43: 0 | H43: 0 | I43: 0 | J43: 0 | K43: 0 | L43: 0 | M43: 0 | N43: 0 | O43: 0 | P43: 0 | Q43: 0 | R43: 0 | S43: 0 | T43: 0 | U43: 0 | V43: 0 | W43: 0 | X43: 0 | Y43: 0 | Z43: 0 | AA43: 0 | AB43: 0 | AC43: 0 | AD43: 0 | AE43: 2
A44: Otros | B44: NOTA 2 | C44: 30155 | D44: 32.18761751 | E44: 13764.53803 | F44: 443.8013983 | G44: 549.7982903 | H44: 49.71350664 | I44: 0 | J44: 0.004454582288 | K44: 0.0005255452311 | L44: 2.045590367 | M44: 0.0901687548 | N44: 146.5148058 | O44: 25196.775 | P44: 26.57782333 | Q44: 43746.97285 | R44: 14734.49125 | S44: 11592.69022 | T44: 293.8846199 | U44: 103624.0739 | V44: 174.7724468 | W44: 21714.37468 | X44: 5.489798513 | Y44: 4.46545456 | Z44: 415.5858535 | AA44: 97.12098744 | AB44: 0 | AC44: 223.2499248 | AD44: 236839.2192 | AE44: 2
A45: Terreno, Edificios, Planta y Equipos no de Telecomunicaciones | B45: NOTA 2 | C45: 302 | D45: =+D46+D47+D48+D49+D50+D51+D52 -> 213.7059581 | E45: 91388.05588 | F45: 2946.567978 | G45: 4087.905787 | H45: 369.6339823 | I45: 0 | J45: 0.02957568312 | K45: 0.003489296687 | L45: 15.20954293 | M45: 0.6704301943 | N45: 295.8910951 | O45: 50885.65151 | P45: 69.47771361 | Q45: 114359.9915 | R45: 108424.1929 | S45: 63770.75325 | T45: 71.01127413 | U45: 568315.4229 | V45: 623.1395761 | W45: 119449.5844 | X45: 0 | Y45: 108.6911749 | Z45: 10115.54682 | AA45: 534.2572265 | AB45: 0 | AC45: 0 | AD45: 1136045.394 | AE45: 2
A46: Terrenos | B46: NOTA 2 | C46: 3021 | D46: 172.4254708 | E46: 73735.09236 | F46: 2377.394506 | G46: 3310.71983 | H46: 299.3597745 | I46: 0 | J46: 0.02386269962 | K46: 0.002815287086 | L46: 12.31792952 | M46: 0.542969103 | N46: 233.4031096 | O46: 40139.32657 | P46: 50.0110462 | Q46: 82317.94805 | R46: 35797.48875 | S46: 10916.82659 | T46: 0.0312740543 | U46: 96998.06484 | V46: 355.0590686 | W46: 20448.40829 | X46: 0 | Y46: 84.78930416 | Z46: 7891.074663 | AA46: 91.45875181 | AB46: 0 | AC46: 0 | AD46: 375231.7698 | AE46: 2
A47: Edificios | B47: NOTA 2 | C47: 3022 | D47: 38.59397183 | E47: 16504.11661 | F47: 532.1319186 | G47: 731.9904889 | H47: 66.18757219 | I47: 0 | J47: 0.005341185108 | K47: 0.0006301453606 | L47: 2.723458256 | M47: 0.1200488835 | N47: 57.34274857 | O47: 9861.476634 | P47: 16.77751827 | Q47: 27615.71657 | R47: 50572.46117 | S47: 30075.46663 | T47: 38.89209119 | U47: 268038.6623 | V47: 220.0002259 | W47: 56334.63318 | X47: 0 | Y47: 21.74062284 | Z47: 2023.331595 | AA47: 251.9655888 | AB47: 0 | AC47: 0 | AD47: 463004.337 | AE47: 2
A48: Vehículos y Ayudas Mecánicas | B48: NOTA 2 | C48: 3023 | D48: 0.4445453363 | E48: 190.1029545 | F48: 6.129370768 | G48: 7.436491688 | H48: 0.6724176583 | I48: 0 | J48: 6.152253365e-05 | K48: 7.258340306e-06 | L48: 0.02766835771 | M48: 0.001219609459 | N48: 0.598505001 | O48: 102.9274534 | P48: 0.188893947 | Q48: 310.918553 | R48: 835.904463 | S48: 158.725204 | T48: 0.0007010878778 | U48: 1404.499334 | V48: 3.925300251 | W48: 297.3096396 | X48: 0 | Y48: 0.2844391764 | Z48: 26.47186223 | AA48: 1.329764554 | AB48: 0 | AC48: 0 | AD48: 3347.89885 | AE48: 2
A49: Equipos Sistemas Informáticos | B49: NOTA 2 | C49: 3024 | D49: 0.603849276 | E49: 258.2268265 | F49: 8.325846204 | G49: 10.68667864 | H49: 0.9663039679 | I49: 0 | J49: 8.356928837e-05 | K49: 9.859384816e-06 | L49: 0.03976106741 | M49: 0.001752650968 | N49: 0.8156991796 | O49: 140.2792611 | P49: 0.2385023883 | Q49: 392.5738152 | R49: 1682.139871 | S49: 170.1252076 | T49: 0.0007706631701 | U49: 1491.59885 | V49: 4.468998158 | W49: 318.6630911 | X49: 0 | Y49: 0.3695586587 | Z49: 34.39366554 | AA49: 1.425271256 | AB49: 0 | AC49: 0 | AD49: 4515.943673 | AE49: 2
A50: Edificios en arrendamiento financiero | B50: NOTA 2 | C50: 3025 | D50: 0.07774310689 | E50: 33.24564022 | F50: 1.071918403 | G50: 0.12617519 | H50: 0.01140893171 | I50: 0 | J50: 1.075920164e-05 | K50: 1.269355182e-06 | L50: 0.0004694499016 | M50: 2.069315233e-05 | N50: 0.8671454687 | O50: 149.1266985 | P50: 0.5547354963 | Q50: 913.0920313 | R50: 10390.43363 | S50: 15694.06917 | T50: 23.07625781 | U50: 140140.2173 | V50: 30.90832088 | W50: 29396.7053 | X50: 0 | Y50: 0.6547769265 | Z50: 60.93803536 | AA50: 131.4814306 | AB50: 0 | AC50: 0 | AD50: 196966.6582 | AE50: 2
A51: Otros activos bajo la forma de arrendamiento o leasing | B51: NOTA 2 | C51: 3026 | D51: 0.0132988627 | E51: 5.687053457 | F51: 0.1833641108 | G51: 0.09725429753 | H51: 0.008793865407 | I51: 0 | J51: 1.840486586e-06 | K51: 2.171379684e-07 | L51: 0.0003618462584 | M51: 1.595002942e-05 | N51: 0.1043057311 | O51: 17.93790071 | P51: 0.06408938722 | Q51: 105.4908315 | R51: 4102.862464 | S51: 6068.436387 | T51: 8.682052481 | U51: 54186.66458 | V51: 3.507153407 | W51: 11366.84401 | X51: 0 | Y51: 0.07626951572 | Z51: 7.098164669 | AA51: 50.84001408 | AB51: 0 | AC51: 0 | AD51: 75924.59837 | AE51: 2
A52: Otros Activos no de comunicaciones | B52: NOTA 2 | C52: 3027 | D52: 1.547078905 | E52: 661.584425 | F52: 21.3310532 | G52: 26.84886886 | H52: 2.427711115 | I52: 0 | J52: 0.0002141068778 | K52: 2.526002245e-05 | L52: 0.09989443124 | M52: 0.004403304112 | N52: 2.759581599 | O52: 474.5769978 | P52: 1.642927924 | Q52: 2704.251676 | R52: 5042.902583 | S52: 687.1040607 | T52: 0.3281268422 | U52: 6055.715692 | V52: 5.270508936 | W52: 1287.020936 | X52: 0 | Y52: 0.7762036319 | Z52: 72.23883806 | AA52: 5.756405422 | AB52: 0 | AC52: 0 | AD52: 17054.18821 | AE52: 2
A53: Activos Intangibles | B53: NOTA 2 | C53: 31 | D53: =+D54+D55+D56+D57+D58+D59 -> 5.984972931 | E53: 2559.381336 | F53: 82.52053308 | G53: 201.7951349 | H53: 18.24658962 | I53: 0 | J53: 0.0008282860452 | K53: 9.771999998e-05 | L53: 0.7508029605 | M53: 0.0330950757 | N53: 17.37557194 | O53: 2988.151091 | P53: 19.54674244 | Q53: 32173.8466 | R53: 92168.10554 | S53: 117161.8992 | T53: 169.8990602 | U53: 1045949.116 | V53: 361.0402436 | W53: 219457.0309 | X53: 0 | Y53: 11.93005114 | Z53: 1110.292451 | AA53: 981.5564048 | AB53: 0 | AC53: 0 | AD53: 1515438.503 | AE53: 2
A54: Concesiones | B54: NOTA 2 | C54: 311 | D54: 0.1134172059 | E54: 48.50111827 | F54: 1.563791248 | G54: 0.7359021281 | H54: 0.06654126791 | I54: 0 | J54: 1.569629303e-05 | K54: 1.851826146e-06 | L54: 0.002738011978 | M54: 0.0001206904054 | N54: 2.567308883 | O54: 441.5110401 | P54: 5.041838999 | Q54: 8298.843402 | R54: 64144.31893 | S54: 96885.79066 | T54: 142.4403766 | U54: 865141.8322 | V54: 84.16677286 | W54: 181477.6656 | X54: 0 | Y54: 1.789670875 | Z54: 166.5590564 | AA54: 811.687665 | AB54: 0 | AC54: 0 | AD54: 1217655.198 | AE54: 2
A55: Licencias | B55: NOTA 2 | C55: 312 | D55: 2.146767509 | E55: 918.0320042 | F55: 29.59953224 | G55: 130.2739982 | H55: 11.7795515 | I55: 0 | J55: 0.0002971003529 | K55: 3.505147364e-05 | L55: 0.4847000084 | M55: 0.02136537056 | N55: 6.627812552 | O55: 1139.813145 | P55: 6.915061051 | Q55: 11382.15814 | R55: 7951.703788 | S55: 12010.52753 | T55: 17.67842966 | U55: 107248.026 | V55: 158.1890999 | W55: 22497.02959 | X55: 0 | Y55: 5.995844806 | Z55: 558.0144749 | AA55: 100.6215358 | AB55: 0 | AC55: 0 | AD55: 164175.6387 | AE55: 2
A56: Patentes y propiedad intelectual | B56: NOTA 2 | C56: 313 | D56: 0 | E56: 0 | F56: 0 | G56: 0 | H56: 0 | I56: 0 | J56: 0 | K56: 0 | L56: 0 | M56: 0 | N56: 0 | O56: 0 | P56: 0 | Q56: 0 | R56: 0 | S56: 0 | T56: 0 | U56: 0 | V56: 0 | W56: 0 | X56: 0 | Y56: 0 | Z56: 0 | AA56: 0 | AB56: 0 | AC56: 0 | AD56: 0 | AE56: 2
A57: Software | B57: NOTA 2 | C57: 314 | D57: 3.578467111 | E57: 1530.276251 | F57: 49.33974088 | G57: 69.83583698 | H57: 6.314651039 | I57: 0 | J57: 0.0004952393947 | K57: 5.842763368e-05 | L57: 0.259832593 | M57: 0.01145331037 | N57: 4.85506314 | O57: 834.9458808 | P57: 1.085296187 | Q57: 1786.392446 | R57: 15677.36006 | S57: 1627.640204 | T57: 0.001182312867 | U57: 14285.75455 | V57: 10.09965351 | W57: 3048.747836 | X57: 0 | Y57: 1.835656322 | Z57: 170.8387778 | AA57: 13.63600862 | AB57: 0 | AC57: 0 | AD57: 39122.8094 | AE57: 2
A58: Investigación y Desarrollo | B58: NOTA 2 | C58: 315 | D58: 0 | E58: 0 | F58: 0 | G58: 0 | H58: 0 | I58: 0 | J58: 0 | K58: 0 | L58: 0 | M58: 0 | N58: 0 | O58: 0 | P58: 0 | Q58: 0 | R58: 0 | S58: 0 | T58: 0 | U58: 0 | V58: 0 | W58: 0 | X58: 0 | Y58: 0 | Z58: 0 | AA58: 0 | AB58: 0 | AC58: 0 | AD58: 0 | AE58: 2
A59: Otros Activos Intangibles | B59: NOTA 2 | C59: 316 | D59: 0.1463211054 | E59: 62.57196326 | F59: 2.017468711 | G59: 0.9493975102 | H59: 0.08584580974 | I59: 0 | J59: 2.025000466e-05 | K59: 2.389066515e-06 | L59: 0.00353234711 | M59: 0.0001557043607 | N59: 3.325387366 | O59: 571.8810246 | P59: 6.504546202 | Q59: 10706.45261 | R59: 4394.722761 | S59: 6637.940765 | T59: 9.779071604 | U59: 59273.50333 | V59: 108.5847174 | W59: 12433.5879 | X59: 0 | Y59: 2.30887914 | Z59: 214.8801415 | AA59: 55.61119545 | AB59: 0 | AC59: 0 | AD59: 94484.85705 | AE59: 2
A60: Otros Activos No Corrientes | B60: NOTA 2 | C60: 32 | D60: 0 | E60: 0 | F60: 0 | G60: 0 | H60: 0 | I60: 0 | J60: 0 | K60: 0 | L60: 0 | M60: 0 | N60: 0 | O60: 0 | P60: 0 | Q60: 0 | R60: 15544.27108 | S60: 22776.15347 | T60: 32.96050724 | U60: 203371.8264 | V60: 0 | W60: 42662.22255 | X60: 0 | Y60: 0 | Z60: 0 | AA60: 190.8135621 | AB60: 0 | AC60: 0 | AD60: 284578.2476 | AE60: 2

Sheet NOTA 2
A1: AMERICA MOVIL PERU S.A.C
A2: Anexo 2
A3: Homologación Plan Contable Regulatorio y Plan Contable
A4: Código PCR | B4: Descripción Código PCR | C4: Cta Local PCGE | D4: Nombre de la cta
A5: 30111 | B5: Equipos terminales -Teléfonos de Abonados | C5: 3362102139 | D5: CPE - MANTENIMIENTO CLIENTES
A6: 30111 | B6: Equipos terminales -Teléfonos de Abonados | C6: 3362101005 | D6: CPE - CABLE MODEM CLIENTE
A7: 30112 | B7: Equipos terminales -Teléfonos Públicos | C7: 3369101000 | D7: TELEFONIA PUBLICA RURAL TPR
A8: 30112 | B8: Equipos terminales -Teléfonos Públicos | C8: 3362101007 | D8: PTE - EQUIPO PARA TELEFONIA PUBLICA
A9: 30112 | B9: Equipos terminales -Teléfonos Públicos | C9: 3362101723 | D9: PTE - EQUIPO MTTO. TPI/TPE
A10: 30113 | B10: Equipos Terminales -Televisión de Paga | C10: 3362102142 | D10: CPE - SET TOP BOX
A11: 30113 | B11: Equipos Terminales -Televisión de Paga | C11: 3362102139 | D11: CPE - MANTENIMIENTO CLIENTES
A12: 30113 | B12: Equipos Terminales -Televisión de Paga | C12: 3362102138 | D12: CPE - ANTENAS CLIENTES
A13: 30113 | B13: Equipos Terminales -Televisión de Paga | C13: 3362102140 | D13: CPE - LNB ABONADO
A14: 30114 | B14: Equipos Terminales -Internet Fijo | C14: 3362101003 | D14: CPE - EQUIPO CPE CLIENTES
A15: 30114 | B15: Equipos Terminales -Internet Fijo | C15: 3362102139 | D15: CPE - MANTENIMIENTO CLIENTES
A16: 30114 | B16: Equipos Terminales -Internet Fijo | C16: 3362101005 | D16: CPE - CABLE MODEM CLIENTE
A17: 30115 | B17: Equipos Terminales -Telefonía Móvil | C17: 3369102000 | D17: MSC - CELULARES CLIENTES BUSINESS
A18: 30115 | B18: Equipos Terminales -Telefonía Móvil | C18: 3369102200 | D18: MSC - CELULARES CLIENTES CONSUMER
A19: 3012 | B19: Planta y Equipo de Acceso Local | C19: 3362102144 | D19: UM - ACOMETIDAS/INSTALACION EN CLIENTES
A20: 3012 | B20: Planta y Equipo de Acceso Local | C20: 3362101031 | D20: UM - ACOPLADORES DE RED
A21: 3012 | B21: Planta y Equipo de Acceso Local | C21: 3362101116 | D21: UM - AMPLIFICADORES
A22: 3012 | B22: Planta y Equipo de Acceso Local | C22: 3362101117 | D22: UM - ANTENAS RECEPTORAS
A23: 30132 | B23: Centrales de Larga Distancia Nacional | C23: 3362101001 | D23: CX - CENTRALES TELEFONICAS ( SOFTSWITCH )
A24: 30132 | B24: Centrales de Larga Distancia Nacional | C24: 3362101011 | D24: CONMUTADORES PARA DATOS
A25: 30133 | B25: Centrales de Larga Distancia Internacional | C25: 3362101001 | D25: CX - CENTRALES TELEFONICAS ( SOFTSWITCH )
A26: 30133 | B26: Centrales de Larga Distancia Internacional | C26: 3362101011 | D26: CONMUTADORES PARA DATOS
A27: 30134 | B27: Controladores | C27: 3362101000 | D27: BASE STATION CONTROLLER (BSC)
A28: 30134 | B28: Controladores | C28: 3362101016 | D28: CENTRAL DE DATOS GPRS
A29: 30134 | B29: Controladores | C29: 3362101018 | D29: MSC SERVER
A30: 30134 | B30: Controladores | C30: 3362101019 | D30: RADIO NETWORK CONTROLLER
A31: 30134 | B31: Controladores | C31: 3362101035 | D31: CENTRAL DE DATOS 4G
A32: 30134 | B32: Controladores | C32: 3362101108 | D32: PTI - CONTROLADORES CMTS
A33: 30135 | B33: Gateways | C33: 3362101017 | D33: MEDIA GATEWAY
A34: 30135 | B34: Gateways | C34: 3362101138 | D34: PTI - CONVERSORES
A35: 30136 | B35: Cabeceras | C35: 3362101107 | D35: PTI - CODIFICADORES/DECODIFICADORES
A36: 30136 | B36: Cabeceras | C36: 3362101030 | D36: PTI - EQUIPO DE CABECERA
A37: 30136 | B37: Cabeceras | C37: 3362101110 | D37: PTI - GABINETES/CHASIS/RACKS
A38: 30136 | B38: Cabeceras | C38: 3362101112 | D38: PTI - MODULADORES/DEMODULADORES
A39: 30137 | B39: Transmisión de Datos (Servicio Final) | C39: 3362101109 | D39: PTI - EQUIPO DE ACCESO A RED DE DATOS
A40: 30137 | B40: Transmisión de Datos (Servicio Final) | C40: 3362101114 | D40: PTI - SWITCHES
A41: 30137 | B41: Transmisión de Datos (Servicio Final) | C41: 3362101123 | D41: RUTEADORES CELULARES
A42: 30141 | B42: Cables de Transmisión (excluidos internacional) | C42: 3362101026 | D42: PTE - CABLE DE FIBRA OPTICA
A43: 30141 | B43: Cables de Transmisión (excluidos internacional) | C43: 3324102309 | D43: PTE - CABLE DE COBRE
A44: 30141 | B44: Cables de Transmisión (excluidos internacional) | C44: 3324102300 | D44: TX - CABLE DE FIBRA ÓPTICA
A45: 30141 | B45: Cables de Transmisión (excluidos internacional) | C45: 3362101009 | D45: PTE - CABLE COAXIAL
A46: 30142 | B46: Equipos de Transmisión (excluidos internacional) | C46: 3362101238 | D46: PTE - NODOS OPTICOS
A47: 30142 | B47: Equipos de Transmisión (excluidos internacional) | C47: 3362101115 | D47: PTI - TRANSMISORES OPTICOS
A48: 30142 | B48: Equipos de Transmisión (excluidos internacional) | C48: 3362101139 | D48: TX - CONMUTADORES PARA DATOS
A49: 30142 | B49: Equipos de Transmisión (excluidos internacional) | C49: 3362101140 | D49: TX - EQUIPO OPTICO
A50: 30142 | B50: Equipos de Transmisión (excluidos internacional) | C50: 3362101141 | D50: TX - GABINETES/CHASIS/RACKS
A51: 30142 | B51: Equipos de Transmisión (excluidos internacional) | C51: 3362101014 | D51: TX - MULTIPLEXOR EST.IMPU
A52: 30142 | B52: Equipos de Transmisión (excluidos internacional) | C52: 3362101122 | D52: MULTIPLEXORES
A53: 30142 | B53: Equipos de Transmisión (excluidos internacional) | C53: 3362101143 | D53: TX - ROUTERS
A54: 30142 | B54: Equipos de Transmisión (excluidos internacional) | C54: 3362101124 | D54: TARJETAS
A55: 30142 | B55: Equipos de Transmisión (excluidos internacional) | C55: 3362101125 | D55: MICROONDAS
A56: 30143 | B56: Equipos de Transmisión Radio | C56: 3362101126 | D56: BASE TRANSCEIVER STATION (BTS)
A57: 30143 | B57: Equipos de Transmisión Radio | C57: 3362101127 | D57: REPETIDORES GSM
A58: 30143 | B58: Equipos de Transmisión Radio | C58: 3362101128 | D58: MICROCELULAS GSM
A59: 30143 | B59: Equipos de Transmisión Radio | C59: 3362101129 | D59: UNIVERSAL MOBILE TELECOMMUNICATIONS SYS
A60: 30143 | B60: Equipos de Transmisión Radio | C60: 3362101130 | D60: REPETIDORES 3G
A61: 30143 | B61: Equipos de Transmisión Radio | C61: 3362101131 | D61: LONG TERM EVOLUTION (4G)
A62: 30144 | B62: Equipos de Transmisión por Satélite | C62: 3362101113 | D62: PTI - RECEPTORES SATELITALES/ÓPTICOS
A63: 30144 | B63: Equipos de Transmisión por Satélite | C63: 3362101142 | D63: TX - RECEPTORES SATELITALES/ÓPTICOS
A64: 30145 | B64: Cables y Equipos internacionales (excluyendo satélite) | C64: 3362101140 | D64: TX - EQUIPO OPTICO
A65: 30145 | B65: Cables y Equipos internacionales (excluyendo satélite) | C65: 3362101122 | D65: MULTIPLEXORES
A66: 30145 | B66: Cables y Equipos internacionales (excluyendo satélite) | C66: 3362101123 | D66: RUTEADORES CELULARES
A67: 30146 | B67: Otros equipos de transmisión | C67: 3362101027 | D67: CANALIZACION
A68: 30146 | B68: Otros equipos de transmisión | C68: 3362101037 | D68: PTE - MULTITAPS
A69: 30146 | B69: Otros equipos de transmisión | C69: 3362101028 | D69: PTE - POSTES
A70: 30146 | B70: Otros equipos de transmisión | C70: 3362101029 | D70: PTE - SPLITERS
A71: 30151 | B71: Equipos de Fuerza (Planta Energía Eléctrica) | C71: 3362101134 | D71: EQUIPO DE FUERZA
A72: 30151 | B72: Equipos de Fuerza (Planta Energía Eléctrica) | C72: 3369101027 | D72: CORRIENTE ALTERNA GPOS. ELECTROGENOS Y TANQ
A73: 30151 | B73: Equipos de Fuerza (Planta Energía Eléctrica) | C73: 3362101136 | D73: FZA - CORRIENTE DIRECTA ENERGIA SOLAR.
A74: 30152 | B74: Sistemas de Gestión de Red | C74: 3362101021 | D74: SERVIDORES
A75: 30152 | B75: Sistemas de Gestión de Red | C75: 3362101013 | D75: SERVIDORES (DATA CENTER)
A76: 30155 | B76: Otros | C76: 3362101012 | D76: MSC - EQUIPO DIVERSO
A77: 30155 | B77: Otros | C77: 3351101038 | D77: MSC - EQUIPO DIVERSO - FIJA
A78: 30155 | B78: Otros | C78: 3362101132 | D78: MV - INSTALAC. EQUIPOS COMUNICAC. ARRENDADOS
A79: 30155 | B79: Otros | C79: 3362101133 | D79: AIRES ACONDICIONADOS
A80: 3021 | B80: Terrenos | C80: 3311101000 | D80: TERRENO
A81: 3021 | B81: Terrenos | C81: 3311101009 | D81: INM - TERRENOS - FIJA
A82: 3022 | B82: Edificios | C82: 3321101000 | D82: EDIFICIOS
A83: 3022 | B83: Edificios | C83: 3324102100 | D83: INM - INSTALACIONES Y MEJORAS
A84: 3022 | B84: Edificios | C84: 3324102000 | D84: INM - OBRAS CIVILES
A85: 3022 | B85: Edificios | C85: 3324102115 | D85: MEJORAS A INMUEBLES ARRENDADOS
A86: 3022 | B86: Edificios | C86: 3321101009 | D86: INM - EDIFICIOS - FIJA
A87: 3023 | B87: Vehículos y Ayudas Mecánicas | C87: 3341101000 | D87: EQUIPO DE TRANSPORTE VEHICULOS
A88: 3023 | B88: Vehículos y Ayudas Mecánicas | C88: 3369101029 | D88: MONTACARGAS
A89: 3023 | B89: Vehículos y Ayudas Mecánicas | C89: 3341101009 | D89: EQT - UNID. TRANSP.-FIJA
A90: 3024 | B90: Equipos Sistemas Informáticos | C90: 3351101000 | D90: EQUIPO DE COMPUTO CENTRAL
A91: 3024 | B91: Equipos Sistemas Informáticos | C91: 3361101000 | D91: EQUIPO DE COMPUTO PERIFERICO
A92: 3024 | B92: Equipos Sistemas Informáticos | C92: 3351101018 | D92: EQC - EQ. COMPUTO - FIJA
A93: 3024 | B93: Equipos Sistemas Informáticos | C93: 3362101033 | D93: CONMUTADORES
A94: 3025 | B94: Edificios en arrendamiento financiero | C94: 3222102212 | D94: INM - LEASING - INST.SITES LSB 2008 - 2013
A95: 3026 | B95: Otros activos bajo la forma de arrendamiento o leasing | C95: 3226101100 | D95: MSC - LEASING - EQ. DIVERSOS LSB 2012 - 2013
A96: 3026 | B96: Otros activos bajo la forma de arrendamiento o leasing | C96: 3222102200 | D96: TX - LEASING - INST.FIBRA OPTICA LSB 2012
A97: 3026 | B97: Otros activos bajo la forma de arrendamiento o leasing | C97: 3226301100 | D97: MV - LEASING - EQ. COMUNIC. LSB 2008 - 2013
A98: 3026 | B98: Otros activos bajo la forma de arrendamiento o leasing | C98: 3226201100 | D98: EQC - LEASING - EQ. COMP. LSB 2012 - 2013
A99: 3027 | B99: Otros Activos no de comunicaciones | C99: 3369101026 | D99: PTI - HERRAMIENTAS MÓVIL
A100: 3027 | B100: Otros Activos no de comunicaciones | C100: 3362101111 | D100: PTI - INSTRUMENTOS
A101: 3027 | B101: Otros Activos no de comunicaciones | C101: 3362101020 | D101: PTI - EQUIPO DE MEDICION MÓVIL
A102: 3027 | B102: Otros Activos no de comunicaciones | C102: 3362101237 | D102: MOBILIARIO Y EQUIPO
A103: 3027 | B103: Otros Activos no de comunicaciones | C103: 3351101002 | D103: MUEBLES Y ENSERES - FIJA
A104: 3027 | B104: Otros Activos no de comunicaciones | C104: 3369099000 | D104: MBL -ACTIVOS MENORES
A105: 311 | B105: Concesiones | C105: 3411101000 | D105: CONCESIONES Y DERECHOS - MÓVIL
A106: 311 | B106: Concesiones | C106: 3419101000 | D106: CONCESIONES Y DERECHOS - FIJA
A107: 312 | B107: Licencias | C107: 3431101000 | D107: LICENCIAS DE SOFTWARE
A108: 312 | B108: Licencias | C108: 3431101009 | D108: LICENCIAS - FIJA
A109: 314 | B109: Software | C109: 3431102000 | D109: DESARROLLO DE SOFTWARE
A110: 314 | B110: Software | C110: 3412101000 | D110: DESARROLLO SW - FIJA
A111: 316 | B111: Otros Activos Intangibles | C111: 3411101010 | D111: IRU PARTES RELACIONADAS
A112: 316 | B112: Otros Activos Intangibles | C112: 3411101011 | D112: IRU TERCEROS
A113: 32 | B113: Otros Activos No Corrientes | C113: 4970201001 | D113: DIFERIDO ACT LEASEB
A114: 32 | B114: Otros Activos No Corrientes | C114: 4970202001 | D114: DIFERIDO ACTIVO LEASEBACK/COSTO
